fUSD/lending_fUSD_20251224
["ID","MTS","AMOUNT","RATE_DAILY","PERIOD"]
[399626304,1766569840656,-500.0,0.00016438,2]
[399626306,1766569840667,-500.0,0.00016438,2]
[399626308,1766569840678,-500.0,0.00016438,2]
[399626310,1766569840688,-500.0,0.00016438,2]
[399626312,1766569840699,-500.0,0.00016438,2]
[399626314,1766569840710,-500.0,0.00016438,2]
[399626316,1766569840722,-500.0,0.00016438,2]
[399626318,1766569840733,-500.0,0.00016438,2]
[399626320,1766569840744,-500.0,0.00016438,2]
[399626322,1766569840755,-500.0,0.00016438,2]
[399626325,1766569840768,-500.0,0.00016438,2]
[399626327,1766569840779,-500.0,0.00016438,2]
[399626329,1766569840791,-500.0,0.00016438,2]
[399626331,1766569840804,-631.51332455,0.00016438,2]
[399626333,1766569840815,-500.0,0.00016438,2]
[399626336,1766569840826,-500.0,0.00016438,2]
[399626338,1766569840837,-500.0,0.00016438,2]
[399626340,1766569840848,-500.0,0.00016438,2]
[399626342,1766569840859,-500.0,0.00016438,2]
[399626344,1766569840870,-500.0,0.00016438,2]
[399626346,1766569840882,-500.0,0.00016438,2]
[399626348,1766569840893,-500.0,0.00016438,2]
[399626350,1766569840904,-500.0,0.00016438,2]
[399626352,1766569840916,-500.0,0.00016438,2]
[399626355,1766569840927,-500.0,0.00016438,2]
[399626357,1766569840938,-500.0,0.00016438,2]
[399626359,1766569840949,-150.0,0.00016464,2]
[399626361,1766569840961,-763.08347921,0.0001648,2]
[399626363,1766569840972,-150.0,0.00016501,2]
[399626365,1766569840983,-420.0,0.0001653,2]
[399626367,1766569840994,-582.63,0.00016542,2]
[399626369,1766569841006,-14825.69462037,0.0001656,2]
[399626370,1766569841017,-150.0,0.00016562,2]
[399626371,1766569841030,-10596.36958984,0.00016573,2]
[399626372,1766569841040,-150.0,0.00016594,2]
[399626373,1766569841052,-1168.0,0.00016601,2]
[399626374,1766569841064,-1680.0,0.00016613,2]
[399626375,1766569841075,-195.0,0.00016613,2]
[399626376,1766569841087,-250.0,0.00016613,2]
[399626377,1766569841099,-600.0,0.00016613,2]
[399626378,1766569841111,-300.0,0.00016613,2]
[399626379,1766569841123,-300.0,0.00016613,2]
[399626380,1766569841134,-150.0,0.00016647,2]
[399626381,1766569841145,-150.0,0.00016647,2]
[399626382,1766569841157,-150.0,0.00016647,2]
[399626383,1766569841168,-150.0,0.00016647,2]
[399626384,1766569841179,-195.0,0.00016685,2]
[399626385,1766569841191,-300.0,0.00016685,2]
[399626386,1766569841203,-250.0,0.00016687,2]
[399626387,1766569841214,-1438.8540389,0.00016687,2]
[399626388,1766569841225,-600.0,0.00016687,2]
[399626389,1766569841237,-195.0,0.00016687,2]
[399626390,1766569841249,-5000.0,0.00016687,4]
[399626391,1766569841260,-300.0,0.00016687,2]
[399626392,1766569841271,-300.0,0.00016687,2]
[399626393,1766569841283,-193.0,0.00016687,2]
[399626394,1766569841295,-763.08347921,0.0001669,2]
[399626395,1766569841306,-164.17,0.00016712,2]
[399626396,1766569841317,-150.0,0.00016725,2]
[399626397,1766569841328,-14825.69462037,0.0001673,2]
[399626398,1766569841339,-10596.36958984,0.00016737,2]
[399626399,1766569841351,-150.0,0.00016744,2]
[399626400,1766569841362,-205.24498925,0.00016758,2]
[399626401,1766569841374,-1247.37621042,0.00016816,2]
[399626402,1766569841385,-2000.0,0.00016816,2]
[399626403,1766569841397,-150.0,0.00016856,2]
[399626404,1766569841408,-200.0,0.00016864,2]
[399626405,1766569841419,-10000.0,0.000169,2]
[399626406,1766569841431,-10596.36958984,0.000169,2]
[399626407,1766569841442,-14825.69462037,0.000169,2]
[399626408,1766569841454,-763.08347921,0.000169,2]
[399626409,1766569841467,-414.00556644,0.000169,2]
[399626410,1766569841479,-397.51366734,0.000169,2]
[399626411,1766569841490,-500.0,0.000169,2]
[399626412,1766569841502,-500.0,0.000169,2]
[399626413,1766569841514,-500.0,0.000169,2]
[399626414,1766569841526,-500.0,0.000169,2]
[399626415,1766569841542,-500.0,0.000169,2]
[399626416,1766569841553,-500.0,0.000169,2]
[399626417,1766569841564,-500.0,0.000169,2]
[399626418,1766569841575,-500.0,0.000169,2]
[399626419,1766569841586,-500.0,0.000169,2]
[399626420,1766569841599,-500.0,0.000169,2]
[399626421,1766569841612,-500.0,0.000169,2]
[399626422,1766569841623,-500.0,0.000169,2]
[399626423,1766569841635,-500.0,0.000169,2]
[399626424,1766569841646,-500.0,0.000169,2]
[399626425,1766569841657,-500.0,0.000169,2]
[399626426,1766569841669,-500.0,0.000169,2]
[399626427,1766569841680,-500.0,0.000169,2]
[399626428,1766569841691,-500.0,0.000169,2]
[399626429,1766569841702,-500.0,0.000169,2]
[399626430,1766569841715,-500.0,0.000169,2]
[399626431,1766569841726,-500.0,0.000169,2]
[399626432,1766569841738,-500.0,0.000169,2]
[399626433,1766569841749,-500.0,0.000169,2]
[399626434,1766569841760,-500.0,0.000169,2]
[399626435,1766569841771,-500.0,0.000169,2]
[399626436,1766569841782,-425.97674525,0.000169,2]
[399626437,1766569841793,-4329.0,0.000169,2]
[399626438,1766569841803,-150.0,0.00016973,2]
[399626439,1766569841815,-167.34253096,0.00016986,2]
[399626440,1766569841826,-161.36386193,0.00016986,2]
[399626441,1766569841837,-170.997015,0.00016986,2]
[399626442,1766569841848,-163.76766148,0.00016986,2]
[399626443,1766569841860,-165.56757256,0.00016986,2]
[399626444,1766569841871,-257.33467835,0.00016986,2]
[399626445,1766569841883,-154.07691811,0.00016986,2]
[399626446,1766569841895,-283.63770429,0.00016986,2]
[399626447,1766569841909,-156.0209703,0.00016986,2]
[399626448,1766569841921,-168.10359293,0.00016986,2]
[399626449,1766569841932,-896.01058602,0.0001699,2]
[399626450,1766569841944,-896.01058602,0.0001699,2]
[399626451,1766569841955,-151.0,0.00016996,2]
[399626452,1766569841967,-151.0,0.00016997,2]
[399626453,1766569841979,-11670.46524932,0.00016999,2]
[399626454,1766569841991,-13977.7833632,0.00016999,2]
[399626455,1766569842002,-300.0,0.00016999,2]
[399626456,1766569842013,-591401.6478242,0.00016999,2]
[399626457,1766569842025,-300.0,0.00016999,2]
[399626458,1766569842036,-666.0,0.00016999,2]
[399626459,1766569842047,-791.95,0.00016999,2]
[399626460,1766569842059,-791.95,0.00016999,2]
[399626461,1766569842070,-791.95,0.00016999,2]
[399626462,1766569842082,-791.95,0.00016999,2]
[399626463,1766569842093,-791.95,0.00016999,2]
[399626464,1766569842104,-300.0,0.00016999,2]
[399626465,1766569842115,-500.0,0.00016999,2]
[399626466,1766569842127,-38029.1496879,0.00016999,2]
[399626467,1766569842138,-300.0,0.00016999,2]
[399626468,1766569842149,-1756.1839347,0.00016999,2]
[399626469,1766569842160,-300.0,0.00016999,2]
[399626470,1766569842171,-666.0,0.00016999,2]
[399626471,1766569842184,-300.0,0.00016999,2]
[399626472,1766569842196,-300.0,0.00016999,2]
[399626473,1766569842207,-2188856.55595702,0.00017,2]
[399626487,1766569843749,-70220.78215681,0.00017,2]
[399626488,1766569843762,-610.67312315,0.00017,2]
[399626489,1766569843790,-236.0134,0.00015272,2]
[399626490,1766569843800,-43188.48659987,0.00017,2]
[399626491,1766569843816,-881.42399107,0.00017,2]
[399626492,1766569844035,-151.0,0.00015831,2]
[399626493,1766569844045,-450.58133479,0.00017,2]
[399626494,1766569844061,-1116.74796042,0.00017,2]
[399626495,1766569844073,-1076.0,0.00017,2]
[399626496,1766569844102,-9566.66574271,0.00017,2]
[399626497,1766569844302,-895.32391637,0.00017,2]
[399626498,1766569844314,-9816.3084635,0.00017,2]
[399626499,1766569844325,-21733.85112103,0.00017,2]
[399626500,1766569844345,-194641.87110818,0.00017,2]
[399626502,1766569845813,-262.9,0.00017,2]
[399626503,1766569845867,-1352.0,0.00017,2]
[399626504,1766569845879,-269.99999995,0.00017,2]
[399626505,1766569845891,-3268.74443991,0.00017,2]
[399626506,1766569846025,-630.21210057,0.00017,2]
[399626514,1766569993717,166.66,0.00014128,2]
[399626515,1766569993931,166.66,0.00014425,2]
[399626516,1766569994135,166.66,0.00014722,2]
[399626519,1766570431666,-156.58520274,0.00014899,2]
[399626520,1766570446718,220.0,0.0003,120]
[399626522,1766570574343,4000.0,0.00032877,120]
[399626523,1766570602518,966.11888445,0.00032877,120]
[399626524,1766570692756,1500.0,0.00014251,2]
[399626525,1766570697072,310.72164144,0.0003287,120]
[399626526,1766570761476,591.54,0.00014178,2]
[399626527,1766570846720,6691.5941,0.00014898,2]
[399626528,1766570892249,167.02,0.00014554,2]
[399626529,1766570893417,736.68549452,0.00014898,2]
[399626530,1766570893445,10000.01,0.00014898,2]
[399626531,1766570893473,10000.01,0.00014898,2]
[399626532,1766570893499,10000.01,0.00014898,2]
[399626533,1766570893525,10000.01,0.00014898,2]
[399626534,1766570893551,10000.01,0.00014898,2]
[399626535,1766570893576,10000.01,0.00014898,2]
[399626536,1766570893602,10000.01,0.00014898,2]
[399626537,1766570893628,10000.01,0.00014898,2]
[399626538,1766570893653,10000.01,0.00014898,2]
[399626539,1766570894363,-516.81572099,0.00014898,2]
[399626540,1766570898950,3240.0,0.00014145,2]
[399626541,1766570901904,-243.32495825,0.00014898,2]
[399626542,1766570904395,-220.07387993,0.00014898,2]
[399626543,1766570909981,-201.51614383,0.00014898,2]
[399626544,1766570911947,-300.0,0.00014898,2]
[399626545,1766570913476,-176.67626731,0.00014897,2]
[399626546,1766570916119,-314.65468808,0.00014897,2]
[399626547,1766570917524,-8.66904461,0.00014897,2]
[399626548,1766570917547,-302.60541528,0.00014897,2]
[399626549,1766570920528,-136.89694754,0.00014897,2]
[399626550,1766570920552,-168.88416526,0.00014897,2]
[399626551,1766570927022,6424.43,0.00014121,2]
[399626552,1766570936954,202.15204338,0.00014832,2]
[399626553,1766570937744,-10.93605856,0.00014897,2]
[399626554,1766570937768,-289.06394144,0.00014897,2]
[399626555,1766570940689,-185.34531192,0.00014897,2]
[399626556,1766570942697,-188.24464599,0.00014896,2]
[399626557,1766570944184,-111.75535401,0.00014896,2]
[399626558,1766570944212,-77.31553278,0.00014897,2]
[399626559,1766570944979,2558.646822,0.00014822,2]
[399626560,1766570946120,-72.68446722,0.00014897,2]
[399626561,1766570946146,-88.424244,0.00014897,2]
[399626562,1766570946170,-412.16935145,0.00014897,2]
[399626563,1766570949459,-87.83064855,0.00014897,2]
[399626564,1766570949485,-236.31654756,0.00014897,2]
[399626565,1766570951488,-263.68345244,0.00014897,2]
[399626566,1766570951516,-3.96541656,0.00014897,2]
[399626567,1766570951726,200.0,0.00032,120]
[399626568,1766570953462,-232.351131,0.00014897,2]
[399626569,1766570956394,-242.26357046,0.00014897,2]
[399626570,1766570957601,188.244646,0.00014821,2]
[399626571,1766570958569,-21.41988198,0.00014897,2]
[399626572,1766570958594,-478.90673007,0.00014897,2]
[399626573,1766570959667,-140.18386985,0.00014897,2]
[399626574,1766570959694,-172.11689168,0.00014897,2]
[399626575,1766570961095,-245.99778002,0.00014897,2]
[399626576,1766570964321,-81.8853283,0.00014897,2]
[399626577,1766570964349,-176.127651,0.00014897,2]
[399626578,1766570965273,300.0,0.0003,120]
[399626579,1766570967029,-204.72190576,0.00014897,2]
[399626580,1766570967053,-107.75240559,0.00014898,2]
[399626581,1766570969728,-160.147635,0.00014898,2]
[399626582,1766570969750,-157.10837628,0.00014898,2]
[399626583,1766570973051,-393.16426371,0.00014898,2]
[399626584,1766570974159,-78.15394533,0.00014898,2]
[399626585,1766570974186,-3991.0113745,0.00014898,2]
[399626586,1766570978166,-160.16794915,0.00014898,2]
[399626587,1766570980523,-671.55637566,0.00014898,2]
[399626588,1766570982952,-151.40513183,0.00014898,2]
[399626589,1766570984949,-501.93541913,0.00014898,2]
[399626590,1766570986390,-357.49856696,0.00014898,2]
[399626591,1766570987745,300.0,0.00032,120]
[399626592,1766570988632,-263.73682462,0.00014898,2]
[399626593,1766570990178,-279.48633976,0.00014898,2]
[399626594,1766570992289,-335.29075265,0.00014898,2]
[399626595,1766570995615,-443.64321213,0.00014898,2]
[399626596,1766570997086,-215.97542752,0.00014898,2]
[399626597,1766571000955,-216.21042262,0.00014898,2]
[399626598,1766571003872,-290.56774108,0.00014897,2]
[399626599,1766571005878,-9.43225892,0.00014897,2]
[399626600,1766571005905,-334.05210067,0.00014897,2]
[399626601,1766571007564,-229.00461773,0.00014897,2]
[399626602,1766571010883,-184.66639574,0.00014897,2]
[399626603,1766571014337,-181.06266898,0.00014897,2]
[399626604,1766571015894,-258.7351575,0.00014897,2]
[399626605,1766571021620,-490.97745327,0.00014896,2]
[399626606,1766571022899,10000.01,0.00014798,2]
[399626607,1766571022923,705.00920444,0.00014798,2]
[399626608,1766571023857,350.0,0.00032,120]
[399626609,1766571025295,-9.02254673,0.00014896,2]
[399626610,1766571025321,-12.47905938,0.00014897,2]
[399626611,1766571025346,-279.67423165,0.00014897,2]
[399626612,1766571031244,-20.32576835,0.00014897,2]
[399626613,1766571031268,-269.69195794,0.00014897,2]
[399626618,1766571031814,-30.30804206,0.00014897,2]
[399626619,1766571031825,-195.0,0.00014898,2]
[399626620,1766571031836,-274.0,0.00014898,2]
[399626621,1766571031846,-75.29195794,0.00014898,2]
[399626622,1766571031857,-352352.62906376,0.00014898,2]
[399626623,1766571031870,-356830.521,0.00014898,2]
[399626624,1766571031883,-30817.96815083,0.00014898,2]
[399626625,1766571031904,-2493.21781416,0.00014898,2]
[399626626,1766571031923,-502.88313328,0.00014898,2]
[399626627,1766571031936,-15320.68743986,0.00014898,2]
[399626628,1766571031948,-458.44747329,0.00014898,2]
[399626629,1766571031976,-11597.77018016,0.00014898,2]
[399626790,1766571033927,-537.99660956,0.00014898,2]
[399626910,1766571036192,-264.55332962,0.00014898,2]
[399626911,1766571037933,-306.23050185,0.00014898,2]
[399626912,1766571037987,-128635.37935164,0.00014898,2]
[399626913,1766571037999,-3068.1204,0.00014898,2]
[399626914,1766571038009,-250.0,0.00014932,2]
[399626915,1766571038020,-197.89081002,0.00014966,2]
[399626916,1766571038030,-250.0,0.00014966,2]
[399626917,1766571038040,-195.0,0.00014981,2]
[399626918,1766571038052,-195.0,0.0001499,2]
[399626919,1766571038062,-1200.0,0.00014996,2]
[399626920,1766571038072,-600.0,0.00014996,2]
[399626921,1766571038083,-600.0,0.00014997,2]
[399626922,1766571038094,-2160.07046784,0.00014997,2]
[399626923,1766571038104,-2500.0,0.00014998,2]
[399626924,1766571038115,-226.62941462,0.00015,2]
[399626925,1766571038125,-166.66,0.0001502,2]
[399626926,1766571038136,-10705.0192044,0.00015032,2]
[399626927,1766571038146,-1234.955,0.0001504,2]
[399626928,1766571038157,-165.991,0.0001504,2]
[399626929,1766571038167,-502.99520475,0.00015097,2]
[399626930,1766571038179,-500.0,0.00015097,2]
[399626931,1766571038189,-500.0,0.00015097,2]
[399626932,1766571038200,-500.0,0.00015097,2]
[399626934,1766571038210,-500.0,0.00015097,2]
[399626936,1766571038221,-500.0,0.00015097,2]
[399626938,1766571038231,-508.85643647,0.00015097,2]
[399626939,1766571038242,-500.0,0.00015097,2]
[399626940,1766571038253,-500.0,0.00015097,2]
[399626942,1766571038264,-500.0,0.00015097,2]
[399626944,1766571038275,-500.0,0.00015097,2]
[399626946,1766571038285,-500.0,0.00015097,2]
[399626948,1766571038296,-500.0,0.00015097,2]
[399626950,1766571038307,-500.0,0.00015097,2]
[399626952,1766571038317,-503.38622002,0.00015097,2]
[399626954,1766571038328,-500.0,0.00015097,2]
[399626957,1766571038339,-500.0,0.00015097,2]
[399626959,1766571038349,-500.0,0.00015097,2]
[399626961,1766571038359,-500.0,0.00015097,2]
[399626963,1766571038369,-500.0,0.00015097,2]
[399626965,1766571038379,-500.0,0.00015097,2]
[399626966,1766571038389,-500.0,0.00015097,2]
[399626968,1766571038400,-516.01929042,0.00015097,2]
[399626970,1766571038410,-500.0,0.00015097,2]
[399626972,1766571038421,-500.0,0.00015097,2]
[399626974,1766571038431,-500.0,0.00015097,2]
[399626976,1766571038442,-506.04973101,0.00015097,2]
[399626978,1766571038453,-500.0,0.00015097,2]
[399626981,1766571038464,-500.0,0.00015097,2]
[399626984,1766571038474,-500.0,0.00015097,2]
[399626987,1766571038501,-500.0,0.00015097,2]
[399626989,1766571038513,-500.0,0.00015097,2]
[399626991,1766571038523,-500.0,0.00015097,2]
[399626993,1766571038534,-500.0,0.00015097,2]
[399626995,1766571038545,-500.0,0.00015097,2]
[399626997,1766571038555,-508.68503041,0.00015097,2]
[399626999,1766571038566,-505.06498417,0.00015097,2]
[399627001,1766571038576,-514.46412475,0.00015097,2]
[399627003,1766571038587,-772.08,0.00015097,2]
[399627005,1766571038598,-83092.93,0.00015166,2]
[399627007,1766571038608,-169.37257746,0.00015173,2]
[399627009,1766571038619,-161.57308931,0.00015173,2]
[399627010,1766571038629,-562.564449,0.00015173,2]
[399627012,1766571038640,-500.0,0.00015173,2]
[399627014,1766571038651,-500.24054015,0.00015173,2]
[399627016,1766571038662,-500.24102575,0.00015173,2]
[399627018,1766571038672,-500.0,0.00015173,2]
[399627020,1766571038682,-174.83400543,0.00015173,2]
[399627021,1766571038692,-163.19223575,0.00015173,2]
[399627022,1766571038703,-172.85820104,0.00015173,2]
[399627023,1766571038713,-500.0,0.00015173,2]
[399627024,1766571038723,-500.0,0.00015173,2]
[399627025,1766571038734,-500.37919946,0.00015173,2]
[399627026,1766571038744,-167.20691349,0.00015173,2]
[399627027,1766571038754,-500.08479975,0.00015173,2]
[399627028,1766571038764,-500.0,0.00015173,2]
[399627029,1766571038775,-500.0,0.00015173,2]
[399627030,1766571038785,-500.0,0.00015173,2]
[399627031,1766571038798,-224.16527175,0.00015173,2]
[399627032,1766571038809,-500.0,0.00015173,2]
[399627033,1766571038820,-500.0,0.00015173,2]
[399627034,1766571038831,-500.0,0.00015173,2]
[399627035,1766571038843,-644.90304648,0.00015173,2]
[399627036,1766571038859,-500.0,0.00015173,2]
[399627037,1766571038877,-550.49299637,0.00015173,2]
[399627038,1766571038888,-500.0,0.00015173,2]
[399627039,1766571038899,-176.76151573,0.00015173,2]
[399627040,1766571038910,-500.75288721,0.00015173,2]
[399627041,1766571038921,-453.84632834,0.00015173,2]
[399627042,1766571038932,-500.0,0.00015173,2]
[399627043,1766571038943,-500.0,0.00015173,2]
[399627044,1766571038954,-500.0,0.00015173,2]
[399627045,1766571038966,-500.0,0.00015173,2]
[399627046,1766571038976,-500.0,0.00015173,2]
[399627047,1766571038987,-500.0,0.00015173,2]
[399627048,1766571038998,-500.0,0.00015173,2]
[399627049,1766571039009,-516.09973549,0.00015173,2]
[399627050,1766571039020,-500.0,0.00015173,2]
[399627051,1766571039030,-500.0,0.00015173,2]
[399627052,1766571039042,-10705.0192044,0.00015265,2]
[399627053,1766571039054,-150.0,0.00015288,2]
[399627054,1766571039066,-150.0,0.00015288,2]
[399627055,1766571039077,-150.0,0.00015288,2]
[399627056,1766571039088,-150.0,0.00015288,2]
[399627057,1766571039099,-150.0,0.00015288,2]
[399627058,1766571039110,-150.0,0.00015288,2]
[399627059,1766571039121,-150.0,0.00015288,2]
[399627060,1766571039132,-150.0,0.00015288,2]
[399627061,1766571039143,-150.0,0.00015288,2]
[399627062,1766571039154,-150.0,0.00015288,2]
[399627063,1766571039166,-150.0,0.00015288,2]
[399627064,1766571039177,-166.66,0.00015317,2]
[399627065,1766571039188,-772.08,0.00015371,2]
[399627066,1766571039199,-33504.5899,0.00015372,2]
[399627067,1766571039211,-1000.0,0.00015372,2]
[399627068,1766571039222,-150.0,0.00015418,2]
[399627069,1766571039240,-202.15204336,0.00015427,2]
[399627070,1766571039251,-500.0,0.00015471,2]
[399627071,1766571039262,-500.0,0.00015471,2]
[399627072,1766571039273,-500.0,0.00015471,2]
[399627073,1766571039285,-294.2331637,0.00015471,2]
[399627074,1766571039297,-500.0,0.00015471,2]
[399627075,1766571039309,-500.0,0.00015471,2]
[399627076,1766571039319,-500.0,0.00015471,2]
[399627077,1766571039329,-500.0,0.00015471,2]
[399627078,1766571039340,-500.0,0.00015471,2]
[399627079,1766571039350,-500.0,0.00015471,2]
[399627080,1766571039360,-500.0,0.00015471,2]
[399627081,1766571039371,-500.0,0.00015471,2]
[399627082,1766571039381,-500.0,0.00015471,2]
[399627083,1766571039391,-500.0,0.00015471,2]
[399627084,1766571039401,-500.0,0.00015471,2]
[399627085,1766571039413,-500.0,0.00015471,2]
[399627086,1766571039423,-500.0,0.00015471,2]
[399627087,1766571039433,-500.0,0.00015471,2]
[399627088,1766571039443,-500.0,0.00015471,2]
[399627089,1766571039453,-10705.0192044,0.00015499,2]
[399627090,1766571039463,-150.0,0.0001553,2]
[399627091,1766571039473,-150.0,0.00015549,2]
[399627092,1766571039483,-166.66,0.00015615,2]
[399627093,1766571039493,-150.0,0.00015627,2]
[399627094,1766571039504,-150.0,0.00015627,2]
[399627095,1766571039514,-150.0,0.00015627,2]
[399627096,1766571039524,-150.0,0.00015627,2]
[399627097,1766571039534,-772.08,0.00015645,2]
[399627098,1766571039545,-185.42854101,0.00015671,2]
[399627099,1766571039555,-150.0,0.0001568,2]
[399627100,1766571039565,-150.0,0.00015712,2]
[399627101,1766571039575,-1000.0,0.00015721,2]
[399627102,1766571039585,-501.75154146,0.00015721,2]
[399627103,1766571039602,-1000.0,0.00015721,2]
[399627104,1766571039612,-1000.0,0.00015721,2]
[399627105,1766571039622,-631.6683013,0.00015721,2]
[399627106,1766571039632,-1000.0,0.00015721,2]
[399627107,1766571039643,-1000.0,0.00015721,2]
[399627108,1766571039653,-1000.0,0.00015721,2]
[399627109,1766571039663,-1000.0,0.00015721,2]
[399627110,1766571039674,-1000.0,0.00015721,2]
[399627111,1766571039684,-1000.0,0.00015721,2]
[399627112,1766571039695,-1000.0,0.00015721,2]
[399627113,1766571039707,-1000.0,0.00015721,2]
[399627114,1766571039718,-1000.0,0.00015721,2]
[399627115,1766571039728,-1000.0,0.00015721,2]
[399627116,1766571039739,-659.04345804,0.00015721,2]
[399627117,1766571039750,-366.77928753,0.00015721,2]
[399627118,1766571039760,-304.45148549,0.00015721,2]
[399627119,1766571039770,-1000.0,0.00015721,2]
[399627120,1766571039780,-1000.0,0.00015721,2]
[399627121,1766571039791,-151.0,0.00015729,2]
[399627122,1766571039805,-151.0,0.00015729,2]
[399627123,1766571039816,-150.0,0.00015773,2]
[399627124,1766571039826,-150.0,0.0001581,2]
[399627125,1766571039837,-500.0,0.00015881,2]
[399627126,1766571039848,-500.0,0.00015881,2]
[399627127,1766571039859,-500.0,0.00015881,2]
[399627128,1766571039871,-772.08,0.00015919,2]
[399627129,1766571039881,-150.0,0.00015941,2]
[399627130,1766571039893,-150.0,0.00015967,2]
[399627132,1766571039904,-150.0,0.00015967,2]
[399627134,1766571039914,-150.0,0.00015967,2]
[399627136,1766571039924,-150.0,0.00015967,2]
[399627138,1766571039934,-501.02283993,0.00015968,2]
[399627140,1766571039944,-150.0,0.00016016,2]
[399627142,1766571039958,-202.15204336,0.00016022,2]
[399627144,1766571039968,-255.0,0.00016029,2]
[399627145,1766571039979,-150.0,0.00016072,2]
[399627146,1766571039989,-150.0,0.00016137,2]
[399627147,1766571039999,-150.0,0.00016137,2]
[399627148,1766571040010,-150.0,0.00016137,2]
[399627149,1766571040021,-150.0,0.00016137,2]
[399627150,1766571040031,-578.20924308,0.00016149,2]
[399627151,1766571040042,-500.0,0.00016149,2]
[399627152,1766571040052,-500.0,0.00016149,2]
[399627153,1766571040063,-500.0,0.00016149,2]
[399627154,1766571040074,-500.0,0.00016149,2]
[399627155,1766571040084,-500.0,0.00016149,2]
[399627156,1766571040094,-500.0,0.00016149,2]
[399627157,1766571040105,-500.0,0.00016149,2]
[399627158,1766571040115,-500.0,0.00016149,2]
[399627159,1766571040126,-500.0,0.00016149,2]
[399627160,1766571040136,-500.0,0.00016149,2]
[399627161,1766571040147,-500.0,0.00016149,2]
[399627162,1766571040158,-500.0,0.00016149,2]
[399627163,1766571040168,-500.0,0.00016149,2]
[399627164,1766571040178,-500.0,0.00016149,2]
[399627165,1766571040189,-500.0,0.00016149,2]
[399627166,1766571040199,-500.0,0.00016149,2]
[399627167,1766571040210,-500.0,0.00016149,2]
[399627168,1766571040220,-500.0,0.00016149,2]
[399627169,1766571040230,-500.0,0.00016149,2]
[399627170,1766571040241,-500.0,0.00016149,2]
[399627171,1766571040251,-500.0,0.00016149,2]
[399627172,1766571040262,-500.0,0.00016149,2]
[399627173,1766571040272,-585.12486325,0.00016149,2]
[399627174,1766571040283,-500.0,0.00016149,2]
[399627175,1766571040293,-500.0,0.00016149,2]
[399627176,1766571040304,-385.74923715,0.00016149,2]
[399627177,1766571040318,-500.0,0.00016149,2]
[399627178,1766571040328,-500.0,0.00016149,2]
[399627179,1766571040338,-500.0,0.00016149,2]
[399627180,1766571040348,-500.0,0.00016149,2]
[399627181,1766571040358,-500.0,0.00016149,2]
[399627182,1766571040368,-327.95879636,0.00016149,2]
[399627183,1766571040378,-500.0,0.00016149,2]
[399627184,1766571040388,-500.0,0.00016149,2]
[399627185,1766571040399,-543.0,0.00016149,2]
[399627186,1766571040409,-322.6107,0.00016149,2]
[399627187,1766571040419,-500.0,0.00016149,2]
[399627188,1766571040429,-500.0,0.00016149,2]
[399627189,1766571040439,-500.0,0.00016149,2]
[399627191,1766571040449,-253.74257372,0.00016149,2]
[399627192,1766571040459,-500.0,0.00016149,2]
[399627193,1766571040470,-500.0,0.00016149,2]
[399627195,1766571040480,-500.0,0.00016149,2]
[399627197,1766571040489,-259.02685211,0.00016149,2]
[399627198,1766571040503,-620.0,0.00016149,2]